[Event "AUT-ch Open 2020"]
[Site "Graz"]
[Date "2020.02.19"]
[Round "7.16"]
[White "Yankelevich, Lev"]
[Black "Nitin, S.."]
[Result "0-1"]
[ECO "E81"]
[WhiteElo "2473"]
[BlackElo "2353"]
[Annotator "ChessBase"]
[PlyCount "101"]
[EventDate "2020.02.14"]
[EventType "swiss"]
[EventCountry "AUT"]
[SourceTitle "playchess.com"]
[Source "ChessBase"]
[SourceQuality "1"]
[TimeControl "40/5400+30:1800+30"]

1. d4 Nf6 {[%emt 0:01:53]} 2. c4 {[%emt 0:00:00]} g6 {[%emt 0:00:07]} 3. Nc3 {[%emt 0:00:00]} Bg7 {[%emt 0:00:08]} 4. e4 {[%emt 0:00:00]} d6 {[%emt 0:00:08]} 5. f3 {[%emt 0:00:00]} O-O {[%emt 0:00:17]} 6. Be3 {[%emt 0:00:00]} a6 {[%emt 0:00:43]} 7. Qd2 {[%emt 0:00:02]} Nc6 {[%emt 0:00:19]} 8. Nge2 {[%emt 0:00:24]} Na5 {[%emt 0:00:19]} 9. Nc1 {[%emt 0:06:58]} Nd7 {[%emt 0:01:58]} 10. Nb3 {[%emt 0:13:04]} c5 {[%emt 0:10:35]} 11. Rd1 {[%emt 0:01:03]} Nxb3 {[%emt 0:09:41]} 12. axb3 {[%emt 0:01:10]} cxd4 {[%emt 0:00:11]} 13. Bxd4 {[%emt 0:00:08]} Bxd4 {[%emt 0:00:30]} 14. Qxd4 {[%emt 0:00:05]} Qa5 {[%emt 0:06:54]} 15. Qd2 {[%emt 0:14:14]} Nf6 {[%emt 0:09:20]} 16. Na4 {[%emt 0:01:25]} Qc7 {[%emt 0:01:39]} 17. Qd4 {[%emt 0:00:22]} Qa5+ {[%emt 0:04:29]} 18. Qd2 {[%emt 0:06:07]} Qc7 {[%emt 0:00:28]} 19. Qd4 {[%emt 0:01:24]} Qa5+ {[%emt 0:00:11]} 20. Qc3 {[%emt 0:00:22]} Qc7 {[%emt 0:00:22]} 21. Qe3 {[%emt 0:04:13]} Qa5+ {[%emt 0:01:08]} 22. Qc3 {[%emt 0:00:31]} Qc7 {[%emt 0:00:10]} 23. c5 {[%emt 0:10:02]} dxc5 {[%emt 0:00:51]} 24. Nxc5 {[%emt 0:02:28]} b6 {[%emt 0:11:40]} 25. Na4 {[%emt 0:01:57]} Qa7 {[%emt 0:04:11]} 26. e5 {[%emt 0:28:49]} Nd7 {[%emt 0:02:25]} 27. e6 {[%emt 0:00:48]} fxe6 {[%emt 0:00:13]} 28. Qe3 {[%emt 0:00:18]} Rf6 {[%emt 0:01:55]} 29. Bc4 {[%emt 0:01:52]} b5 {[%emt 0:00:22]} 30. Bxe6+ {[%emt 0:00:06]} Kg7 {[%emt 0:00:54]} 31. Rd4 {[%emt 0:01:36]} bxa4 {[%emt 0:02:03]} 32. Bxd7 {[%emt 0:01:44]} Bxd7 {[%emt 0:00:23]} 33. Qxe7+ {[%emt 0:00:04]} Rf7 {[%emt 0:00:09]} 34. Qe5+ {[%emt 0:00:02]} Kg8 {[%emt 0:00:13]} 35. O-O {[%emt 0:00:01]} Re8 {[%emt 0:00:34]} 36. Qd6 {[%emt 0:00:21]} Bb5 {[%emt 0:02:30]} 37. Rfd1 {[%emt 0:00:11]} Rd7 {[%emt 0:01:02]} 38. Qf6 {[%emt 0:00:06]} axb3 {[%emt 0:01:41]} 39. h4 {[%emt 0:00:15]} Re1+ {[%emt 0:03:22]} 40. Kh2 {[%emt 0:00:09]} Qc7+ {[%emt 0:00:51]} 41. Rf4 {[%emt 0:30:03]} Rf7 {[%emt 0:35:55]} 42. Qd8+ {[%emt 0:06:04]} Qxd8 {[%emt 0:00:16]} 43. Rxd8+ {[%emt 0:00:03]} Kg7 {[%emt 0:02:59]} 44. Rb4 {[%emt 0:00:03]} Re3 {[%emt 0:00:10]} 45. Kg3 {[%emt 0:00:21]} Rc7 {[%emt 0:00:42]} 46. Rf4 {[%emt 0:00:46]} Re2 {[%emt 0:01:24]} 47. Rff8 {[%emt 0:00:09]} Bc4 {[%emt 0:00:17]} 48. h5 {[%emt 0:00:25]} gxh5 {[%emt 0:00:44]} 49. f4 {[%emt 0:00:02]} Rxb2 {[%emt 0:00:57]} 50. f5 {[%emt 0:00:05]} Bf7 {[%emt 0:00:12]} 51. Kf4 {[%emt 0:00:09]} 0-1

[Event "AUT-ch Open 2020"]
[Site "Graz"]
[Date "2020.02.19"]
[Round "7.17"]
[White "Horvath, Dominik"]
[Black "Steindl, Johannes"]
[Result "0-1"]
[ECO "A05"]
[WhiteElo "2450"]
[BlackElo "2273"]
[Annotator "ChessBase"]
[PlyCount "142"]
[EventDate "2020.02.14"]
[EventType "swiss"]
[EventCountry "AUT"]
[SourceTitle "playchess.com"]
[Source "ChessBase"]
[SourceQuality "1"]
[TimeControl "40/5400+30:1800+30"]

1. Nf3 {[%emt 0:00:00]} Nf6 {[%emt 0:00:00]} 2. g3 {[%emt 0:00:00]} g6 {[%emt 0:00:00]} 3. Bg2 {[%emt 0:00:00]} Bg7 {[%emt 0:00:00]} 4. O-O {[%emt 0:00:00]} O-O {[%emt 0:00:00]} 5. c4 {[%emt 0:00:02]} Nc6 {[%emt 0:00:00]} 6. d4 {[%emt 0:01:19]} d5 {[%emt 0:00:49]} 7. Nbd2 {[%emt 0:02:59]} Be6 {[%emt 0:13:31]} 8. b3 {[%emt 0:01:22]} dxc4 {[%emt 0:00:40]} 9. Nxc4 {[%emt 0:00:38]} Bd5 {[%emt 0:05:25]} 10. Bb2 {[%emt 0:05:26]} a5 {[%emt 0:03:58]} 11. Rc1 {[%emt 0:09:23]} a4 {[%emt 0:00:33]} 12. bxa4 {[%emt 0:01:28]} Ra6 {[%emt 0:00:44]} 13. a3 {[%emt 0:01:47]} Qa8 {[%emt 0:04:43]} 14. a5 {[%emt 0:01:11]} Rc8 {[%emt 0:05:08]} 15. Bh3 {[%emt 0:10:02]} e6 {[%emt 0:03:04]} 16. Nfd2 {[%emt 0:03:05]} Nxa5 {[%emt 0:01:20]} 17. Nxa5 {[%emt 0:00:24]} Rxa5 {[%emt 0:00:04]} 18. f3 {[%emt 0:00:39]} Rd8 {[%emt 0:18:15]} 19. e4 {[%emt 0:02:08]} Bc6 {[%emt 0:00:04]} 20. Nc4 {[%emt 0:05:42]} Rh5 {[%emt 0:09:49]} 21. Bg2 {[%emt 0:01:01]} Bb5 {[%emt 0:00:03]} 22. Qb3 {[%emt 0:06:55]} Qa6 {[%emt 0:06:47]} 23. Rfe1 {[%emt 0:08:44]} Ba4 {[%emt 0:08:04]} 24. Qe3 {[%emt 0:02:14]} Rb5 {[%emt 0:04:13]} 25. Kh1 {[%emt 0:08:32]} Rb3 {[%emt 0:02:10]} 26. Qf4 {[%emt 0:02:25]} b5 {[%emt 0:01:39]} 27. Qxc7 {[%emt 0:02:47]} Rf8 {[%emt 0:00:10]} 28. Bf1 {[%emt 0:04:03]} bxc4 {[%emt 0:08:00]} 29. Bxc4 {[%emt 0:00:05]} Qb6 {[%emt 0:00:03]} 30. Bxb3 {[%emt 0:00:11]} Qxb3 {[%emt 0:00:04]} 31. Qc3 {[%emt 0:05:16]} Qb7 {[%emt 0:00:06]} 32. Qb4 {[%emt 0:01:23]} Qa7 {[%emt 0:00:18]} 33. Qc5 {[%emt 0:01:32]} Qa6 {[%emt 0:00:37]} 34. d5 {[%emt 0:02:50]} exd5 {[%emt 0:01:00]} 35. e5 {[%emt 0:00:19]} Nh5 {[%emt 0:01:39]} 36. Qxd5 {[%emt 0:00:20]} Rb8 {[%emt 0:01:33]} 37. Ba1 {[%emt 0:06:57]} Bb3 {[%emt 0:00:31]} 38. Qd2 {[%emt 0:00:46]} Qa8 {[%emt 0:00:24]} 39. Qd3 {[%emt 0:01:02]} Bd5 {[%emt 0:00:16]} 40. Kg2 {[%emt 0:03:17]} Be6 {[%emt 0:02:50]} 41. Bd4 {[%emt 0:03:39]} Bf8 {[%emt 0:05:12]} 42. Bc5 {[%emt 0:05:41]} Rb2+ {[%emt 0:02:09]} 43. Re2 {[%emt 0:00:06]} Rxe2+ {[%emt 0:11:24]} 44. Qxe2 {[%emt 0:00:04]} Bxc5 {[%emt 0:00:04]} 45. Rxc5 {[%emt 0:00:04]} Qxa3 {[%emt 0:00:03]} 46. Rb5 {[%emt 0:02:11]} h6 {[%emt 0:01:24]} 47. Qd2 {[%emt 0:01:40]} Qa4 {[%emt 0:03:28]} 48. Rb4 {[%emt 0:02:08]} Qa2 {[%emt 0:02:28]} 49. Rb2 {[%emt 0:00:31]} Qa3 {[%emt 0:01:12]} 50. h4 {[%emt 0:01:49]} Kh7 {[%emt 0:00:59]} 51. Rb8 {[%emt 0:00:59]} Qa2 {[%emt 0:01:24]} 52. Rb2 {[%emt 0:00:19]} Qa3 {[%emt 0:00:04]} 53. Rb8 {[%emt 0:02:56]} Qa2 {[%emt 0:00:17]} 54. Rb2 {[%emt 0:00:45]} Qa3 {[%emt 0:00:04]} 55. Rb7 {[%emt 0:03:37]} Bh3+ {[%emt 0:02:03]} 56. Kf2 {[%emt 0:01:37]} Qc5+ {[%emt 0:00:03]} 57. Qe3 {[%emt 0:00:13]} Qc2+ {[%emt 0:00:04]} 58. Ke1 {[%emt 0:02:23]} Be6 {[%emt 0:00:05]} 59. g4 {[%emt 0:03:29]} Ng3 {[%emt 0:00:57]} 60. Rb8 {[%emt 0:03:14]} h5 {[%emt 0:00:31]} 61. gxh5 {[%emt 0:01:06]} Nxh5 {[%emt 0:00:12]} 62. Qd2 {[%emt 0:00:07]} Qc5 {[%emt 0:00:14]} 63. Qg5 {[%emt 0:01:14]} Qc3+ {[%emt 0:00:16]} 64. Kf2 {[%emt 0:00:45]} Qd4+ {[%emt 0:02:42]} 65. Qe3 {[%emt 0:00:21]} Qxh4+ {[%emt 0:00:07]} 66. Ke2 {[%emt 0:00:05]} Ng3+ {[%emt 0:02:27]} 67. Kd1 {[%emt 0:00:03]} Nf5 {[%emt 0:00:41]} 68. Qd3 {[%emt 0:01:22]} Nd4 {[%emt 0:00:56]} 69. Rb4 {[%emt 0:01:09]} Qh1+ {[%emt 0:00:07]} 70. Kd2 {[%emt 0:00:02]} Nxf3+ {[%emt 0:00:24]} 71. Kc3 {[%emt 0:00:42]} Qe1+ {[%emt 0:00:25] Kd4} 0-1

[Event "AUT-ch Open 2020"]
[Site "Graz"]
[Date "2020.02.19"]
[Round "7.17"]
[White "Modler, Andreas"]
[Black "Zverev, Lev"]
[Result "0-1"]
[ECO "D24"]
[WhiteElo "2225"]
[BlackElo "1914"]
[Annotator "NA"]
[PlyCount "82"]
[EventDate "2020.02.14"]
[EventType "swiss"]
[EventCountry "AUT"]
[SourceTitle "playchess.com"]
[Source "ChessBase"]
[SourceQuality "1"]
[TimeControl "40/5400+30:1800+30"]

1. c4 {[%emt 0:00:00]} e6 {[%emt 0:00:00]} 2. Nc3 {[%emt 0:00:00]} Nf6 {[%emt 0:00:00]} 3. Nf3 {[%emt 0:00:00]} d5 {[%emt 0:00:00]} 4. d4 {[%emt 0:00:10]} dxc4 {[%emt 0:00:00]} 5. e4 {[%emt 0:07:45]} b5 {[%emt 0:01:01]} 6. Nxb5 {[%emt 0:05:29]} Nxe4 {[%emt 0:00:34]} 7. Qa4 {[%emt 0:04:10]} c6 {[%emt 0:10:58]} 8. Nc3 {[%emt 0:01:00]} Nxc3 {[%emt 0:01:29]} 9. bxc3 {[%emt 0:00:09]} Bd6 {[%emt 0:02:47]} 10. Bxc4 {[%emt 0:00:38]} O-O {[%emt 0:02:33]} 11. O-O {[%emt 0:00:14]} Qc7 {[%emt 0:00:03]} 12. Qc2 {[%emt 0:03:10]} Nd7 {[%emt 0:01:58]} 13. Bd3 {[%emt 0:01:18]} h6 {[%emt 0:00:09]} 14. Qe2 {[%emt 0:07:45]} Nf6 {[%emt 0:05:34]} 15. c4 {[%emt 0:06:09]} c5 {[%emt 0:01:33]} 16. dxc5 {[%emt 0:08:02]} Qxc5 {[%emt 0:01:26]} 17. Bb2 {[%emt 0:00:52]} Bb7 {[%emt 0:00:06]} 18. Bxf6 {[%emt 0:01:03]} gxf6 {[%emt 0:00:06]} 19. Be4 {[%emt 0:05:09]} Bxe4 {[%emt 0:01:28]} 20. Qxe4 {[%emt 0:02:14]} Qh5 {[%emt 0:00:59]} 21. Rfd1 {[%emt 0:10:14]} Rad8 {[%emt 0:00:20]} 22. Rd4 {[%emt 0:02:34]} f5 {[%emt 0:00:50]} 23. Qd3 {[%emt 0:01:52]} Be7 {[%emt 0:00:04]} 24. Rb1 {[%emt 0:04:56]} Bf6 {[%emt 0:00:46]} 25. Rxd8 {[%emt 0:01:21]} Rxd8 {[%emt 0:00:07]} 26. Qe3 {[%emt 0:00:20]} e5 {[%emt 0:00:45]} 27. Qxa7 {[%emt 0:16:48]} e4 {[%emt 0:00:07]} 28. Ne1 {[%emt 0:00:49]} Rd1 {[%emt 0:01:22]} 29. Qb8+ {[%emt 0:00:39]} Kh7 {[%emt 0:00:05]} 30. Qb3 {[%emt 0:03:27]} Rd2 {[%emt 0:00:25]} 31. Qe3 {[%emt 0:02:12]} Re2 {[%emt 0:01:19]} 32. Qf4 {[%emt 0:04:09]} Bd4 {[%emt 0:00:18]} 33. Nd3 {[%emt 0:00:25]} exd3 {[%emt 0:01:51]} 34. Qxd4 {[%emt 0:00:07]} d2 {[%emt 0:00:05]} 35. Rf1 {[%emt 0:00:19]} Qg4 {[%emt 0:00:39]} 36. Qd5 {[%emt 0:00:46]} Qg6 {[%emt 0:01:04]} 37. h4 {[%emt 0:00:48]} Qe6 {[%emt 0:00:20]} 38. Qd3 {[%emt 0:00:41]} Qe4 {[%emt 0:00:07]} 39. Qd7 {[%emt 0:00:37]} Qxc4 {[%emt 0:00:13]} 40. Qxf5+ {[%emt 0:00:16]} Kg7 {[%emt 0:00:05]} 41. Qd7 {[%emt 0:05:44]} Re1 {[%emt 0:00:44]} 0-1

[Event "AUT-ch Open 2020"]
[Site "Graz"]
[Date "2020.02.19"]
[Round "7.18"]
[White "Lim, Zhuo Ren"]
[Black "Kilgus, Georg"]
[Result "1/2-1/2"]
[ECO "E04"]
[WhiteElo "2296"]
[BlackElo "2450"]
[Annotator "ChessBase"]
[PlyCount "162"]
[EventDate "2020.02.14"]
[EventType "swiss"]
[EventCountry "AUT"]
[SourceTitle "playchess.com"]
[Source "ChessBase"]
[SourceQuality "1"]
[TimeControl "40/5400+30:1800+30"]

1. d4 {[%emt 0:00:00]} Nf6 {[%emt 0:00:00]} 2. c4 {[%emt 0:00:00]} e6 {[%emt 0:00:00]} 3. Nf3 {[%emt 0:00:00]} d5 {[%emt 0:00:00]} 4. g3 {[%emt 0:00:14]} dxc4 {[%emt 0:00:00]} 5. Bg2 {[%emt 0:00:21]} c6 {[%emt 0:00:00]} 6. Ne5 {[%emt 0:00:25]} c5 {[%emt 0:00:00]} 7. Qa4+ {[%emt 0:18:32]} Nbd7 {[%emt 0:00:08]} 8. dxc5 {[%emt 0:01:58]} Bxc5 {[%emt 0:00:56]} 9. O-O {[%emt 0:01:41]} O-O {[%emt 0:00:47]} 10. Nxc4 {[%emt 0:00:47]} Rb8 {[%emt 0:04:12]} 11. Nc3 {[%emt 0:04:38]} a6 {[%emt 0:01:28]} 12. Qc2 {[%emt 0:00:16]} b5 {[%emt 0:04:17]} 13. Nd2 {[%emt 0:00:12]} Qc7 {[%emt 0:00:33]} 14. Qb1 {[%emt 0:03:57]} Bb7 {[%emt 0:08:06]} 15. Nde4 {[%emt 0:00:56]} Bd4 {[%emt 0:03:34]} 16. Rd1 {[%emt 0:06:05]} Bxc3 {[%emt 0:00:59]} 17. bxc3 {[%emt 0:02:25]} Nxe4 {[%emt 0:09:04]} 18. Bxe4 {[%emt 0:00:02]} Bxe4 {[%emt 0:00:05]} 19. Qxe4 {[%emt 0:00:05]} Qxc3 {[%emt 0:00:07]} 20. Bf4 {[%emt 0:03:51]} Nf6 {[%emt 0:02:51]} 21. Qg2 {[%emt 0:01:31]} Rbd8 {[%emt 0:01:34]} 22. Qb7 {[%emt 0:01:22]} Qc2 {[%emt 0:06:21]} 23. Re1 {[%emt 0:07:57]} Qc8 {[%emt 0:10:56]} 24. Qf3 {[%emt 0:00:14]} Qa8 {[%emt 0:00:15]} 25. Qb3 {[%emt 0:01:28]} Nd5 {[%emt 0:02:53]} 26. Bd2 {[%emt 0:01:30]} Qb7 {[%emt 0:13:39]} 27. a4 {[%emt 0:03:49]} Rb8 {[%emt 0:02:59]} 28. Rab1 {[%emt 0:03:00]} Qd7 {[%emt 0:02:08]} 29. e4 {[%emt 0:01:13]} Nf6 {[%emt 0:05:18]} 30. Bf4 {[%emt 0:00:13]} Rb7 {[%emt 0:01:17]} 31. Red1 {[%emt 0:07:40]} Qc6 {[%emt 0:00:42]} 32. Rd6 {[%emt 0:01:15]} Qxe4 {[%emt 0:00:33]} 33. f3 {[%emt 0:03:01]} Qf5 {[%emt 0:03:17]} 34. Rxa6 {[%emt 0:00:40]} b4 {[%emt 0:00:11]} 35. Rc6 {[%emt 0:06:15]} h5 {[%emt 0:02:36]} 36. Rd1 {[%emt 0:03:41]} Nd5 {[%emt 0:03:25]} 37. Bd6 {[%emt 0:00:09]} Ra8 {[%emt 0:00:40]} 38. Rc5 {[%emt 0:01:53]} Rba7 {[%emt 0:01:31]} 39. Ra1 {[%emt 0:02:23]} Qf6 {[%emt 0:00:01]} 40. Rcc1 {[%emt 0:00:12]} Qd4+ {[%emt 0:01:09]} 41. Kh1 {[%emt 0:30:41]} Ra6 {[%emt 0:31:05]} 42. Bc5 {[%emt 0:00:11]} Qf6 {[%emt 0:01:18]} 43. Kg2 {[%emt 0:00:35]} h4 {[%emt 0:04:12]} 44. Bf2 {[%emt 0:01:46]} Qf5 {[%emt 0:00:00]} 45. Bd4 {[%emt 0:00:00]} g5 {[%emt 0:00:00]} 46. Re1 {[%emt 0:00:00]} g4 {[%emt 0:00:00]} 47. fxg4 {[%emt 0:00:00]} Qxg4 {[%emt 0:00:00]} 48. Be5 {[%emt 0:00:00]} h3+ {[%emt 0:00:00]} 49. Kg1 {[%emt 0:00:00]} Nc3 {[%emt 0:00:00]} 50. Qc2 {[%emt 0:00:00]} Qf3 {[%emt 0:00:00]} 51. Qd2 {[%emt 0:00:00]} f6 {[%emt 0:00:06]} 52. Re3 {[%emt 0:00:00]} Qd5 {[%emt 0:02:25]} 53. Bxc3 {[%emt 0:00:00]} bxc3 {[%emt 0:00:05]} 54. Qxd5 {[%emt 0:00:00]} exd5 {[%emt 0:00:03]} 55. Rxc3 {[%emt 0:00:00]} Rxa4 {[%emt 0:00:04]} 56. Rxa4 {[%emt 0:00:00]} Rxa4 {[%emt 0:00:04]} 57. Rd3 {[%emt 0:00:00]} Ra1+ {[%emt 0:01:19]} 58. Kf2 {[%emt 0:00:00]} Ra2+ {[%emt 0:00:02]} 59. Kg1 {[%emt 0:00:00]} Kf7 {[%emt 0:03:58]} 60. Rxd5 {[%emt 0:00:00]} Kg6 {[%emt 0:00:02]} 61. Rd4 {[%emt 0:00:00]} Ra1+ {[%emt 0:00:10]} 62. Kf2 Rh1 {[%emt 0:00:15]} 63. g4 {[%emt 0:00:00]} Rxh2+ {[%emt 0:00:05]} 64. Kg3 {[%emt 0:00:00]} Rh1 {[%emt 0:00:05]} 65. Rd5 {[%emt 0:00:00]} h2 {[%emt 0:00:33]} 66. Kg2 {[%emt 0:00:00]} Rg1+ {[%emt 0:00:04]} 67. Kxh2 {[%emt 0:00:00]} Rxg4 {[%emt 0:00:03]} 68. Kh3 {[%emt 0:00:00]} Rg1 {[%emt 0:02:09]} 69. Kh2 {[%emt 0:00:00]} Rg4 {[%emt 0:00:21]} 70. Kh3 {[%emt 0:00:00]} f5 {[%emt 0:00:03]} 71. Rd3 {[%emt 0:00:13]} Kf6 {[%emt 0:03:18]} 72. Rg3 {[%emt 0:00:10]} Ra4 {[%emt 0:00:03]} 73. Kg2 {[%emt 0:00:17]} Ke5 {[%emt 0:00:04]} 74. Rb3 {[%emt 0:00:12]} Kf4 {[%emt 0:00:08]} 75. Kf2 {[%emt 0:00:08]} Ra2+ {[%emt 0:00:03]} 76. Kf1 {[%emt 0:00:05]} Kg4 {[%emt 0:00:02]} 77. Rc3 {[%emt 0:00:03]} f4 {[%emt 0:00:12]} 78. Rb3 {[%emt 0:00:07]} Ra1+ {[%emt 0:00:21]} 79. Kf2 {[%emt 0:00:02]} Ra2+ {[%emt 0:00:02]} 80. Kf1 {[%emt 0:00:04]} Ra1+ {[%emt 0:00:01]} 81. Kf2 {[%emt 0:00:08]} Ra2+ {[%emt 0:00:23]} 1/2-1/2

[Event "AUT-ch Open 2020"]
[Site "Graz"]
[Date "2020.02.19"]
[Round "7.18"]
[White "Redzisz, Michal"]
[Black "Brinovec, David"]
[Result "1/2-1/2"]
[ECO "E01"]
[WhiteElo "2115"]
[BlackElo "2279"]
[Annotator "NA"]
[PlyCount "101"]
[EventDate "2020.02.14"]
[EventType "swiss"]
[EventCountry "AUT"]
[SourceTitle "playchess.com"]
[Source "ChessBase"]
[SourceQuality "1"]
[TimeControl "40/5400+30:1800+30"]

1. d4 {[%emt 0:00:00]} d5 {[%emt 0:00:00]} 2. c4 {[%emt 0:00:00]} e6 {[%emt 0:00:00]} 3. Nf3 {[%emt 0:00:00]} Nf6 {[%emt 0:00:00]} 4. g3 {[%emt 0:00:00]} c6 {[%emt 0:00:00]} 5. Bg2 {[%emt 0:00:16]} Nbd7 {[%emt 0:00:00]} 6. Nbd2 {[%emt 0:00:25]} Bd6 {[%emt 0:00:02]} 7. O-O {[%emt 0:00:07]} O-O {[%emt 0:00:04]} 8. Qc2 {[%emt 0:00:08]} Re8 {[%emt 0:00:08]} 9. b3 {[%emt 0:02:48]} e5 {[%emt 0:00:36]} 10. dxe5 {[%emt 0:00:20]} Nxe5 {[%emt 0:00:09]} 11. Bb2 {[%emt 0:00:20]} Nxf3+ {[%emt 0:05:28]} 12. Nxf3 {[%emt 0:04:44]} dxc4 {[%emt 0:00:11]} 13. Qxc4 {[%emt 0:00:09]} Be6 {[%emt 0:00:05]} 14. Qc2 {[%emt 0:01:08]} Bd5 {[%emt 0:00:10]} 15. Nd4 {[%emt 0:05:36]} Bxg2 {[%emt 0:15:51]} 16. Kxg2 {[%emt 0:00:05]} Be5 {[%emt 0:02:02]} 17. Rfd1 {[%emt 0:04:33]} Qe7 {[%emt 0:06:29]} 18. e3 {[%emt 0:04:24]} Rad8 {[%emt 0:02:00]} 19. Rac1 {[%emt 0:05:27]} g6 {[%emt 0:01:53]} 20. Qc5 {[%emt 0:21:07]} Qxc5 {[%emt 0:02:00]} 21. Rxc5 {[%emt 0:00:03]} Ne4 {[%emt 0:01:35]} 22. Rcc1 {[%emt 0:03:27]} c5 {[%emt 0:29:16]} 23. f3 {[%emt 0:00:58]} Nxg3 {[%emt 0:08:12]} 24. hxg3 {[%emt 0:05:21]} Bxd4 {[%emt 0:03:24]} 25. exd4 {[%emt 0:12:16]} Re2+ {[%emt 0:00:06]} 26. Kh3 {[%emt 0:00:02]} Rxb2 {[%emt 0:00:06]} 27. dxc5 {[%emt 0:00:02]} Rxd1 {[%emt 0:06:01]} 28. Rxd1 {[%emt 0:00:03]} Rxa2 {[%emt 0:00:04]} 29. Rd7 {[%emt 0:00:19]} Ra5 {[%emt 0:00:03]} 30. Rxb7 {[%emt 0:02:53]} Rxc5 {[%emt 0:00:05]} 31. Rxa7 {[%emt 0:00:31]} Rc3 {[%emt 0:00:07]} 32. f4 {[%emt 0:01:39]} Rxb3 {[%emt 0:00:04]} 33. Rc7 {[%emt 0:01:59]} Kg7 {[%emt 0:00:06]} 34. Ra7 {[%emt 0:01:23]} Rb6 {[%emt 0:00:36]} 35. Rc7 {[%emt 0:01:52]} Kf6 {[%emt 0:00:08]} 36. Kh4 {[%emt 0:02:07]} h6 {[%emt 0:00:44]} 37. Kh3 {[%emt 0:00:31]} Rd6 {[%emt 0:00:41]} 38. Ra7 {[%emt 0:00:41]} Ke6 {[%emt 0:00:36]} 39. Rb7 {[%emt 0:02:33]} Rd7 {[%emt 0:00:10]} 40. Rb5 {[%emt 0:00:20]} f6 {[%emt 0:00:41]} 41. Kg4 {[%emt 0:32:49]} h5+ {[%emt 0:33:19]} 42. Kh4 {[%emt 0:09:18]} Rd1 {[%emt 0:01:27]} 43. Kh3 {[%emt 0:00:00]} Rd5 {[%emt 0:00:00]} 44. Rb6+ {[%emt 0:00:00]} Kf5 {[%emt 0:00:00]} 45. Ra6 {[%emt 0:00:00]} Rd2 {[%emt 0:00:00]} 46. Rb6 {[%emt 0:00:00]} Rd1 {[%emt 0:00:00]} 47. Ra6 {[%emt 0:00:00]} Re1 {[%emt 0:00:00]} 48. Rb6 {[%emt 0:00:00]} Re6 {[%emt 0:00:00]} 49. Rb4 {[%emt 0:00:00]} Rd6 {[%emt 0:00:00]} 50. Ra4 {[%emt 0:00:00]} g5 {[%emt 0:00:00]} 51. fxg5 {[%emt 0:00:00]} 1/2-1/2

[Event "AUT-ch Open 2020"]
[Site "Graz"]
[Date "2020.02.19"]
[Round "7.19"]
[White "Ozturk, Kubra"]
[Black "David, Alexandru-Vasile"]
[Result "1-0"]
[ECO "D33"]
[WhiteElo "2286"]
[BlackElo "2436"]
[Annotator "NA"]
[PlyCount "105"]
[EventDate "2020.02.14"]
[EventType "swiss"]
[EventCountry "AUT"]
[SourceTitle "playchess.com"]
[Source "ChessBase"]
[SourceQuality "1"]
[TimeControl "40/5400+30:1800+30"]

1. d4 {[%emt 0:00:00]} Nf6 {[%emt 0:00:19]} 2. c4 {[%emt 0:00:00]} e6 {[%emt 0:00:07]} 3. Nc3 {[%emt 0:00:07]} c5 {[%emt 0:00:14]} 4. Nf3 {[%emt 0:06:47]} d5 {[%emt 0:03:38]} 5. cxd5 {[%emt 0:01:24]} exd5 {[%emt 0:00:14]} 6. g3 {[%emt 0:02:02]} Nc6 {[%emt 0:00:18]} 7. Bg2 {[%emt 0:02:44]} cxd4 {[%emt 0:00:06]} 8. Nxd4 {[%emt 0:00:11]} Bc5 {[%emt 0:00:06]} 9. Nxc6 {[%emt 0:08:14]} bxc6 {[%emt 0:00:10]} 10. O-O {[%emt 0:00:14]} O-O {[%emt 0:00:07]} 11. Qc2 {[%emt 0:02:49]} Bb6 {[%emt 0:00:08]} 12. e3 {[%emt 0:18:06]} h5 {[%emt 0:07:57]} 13. h4 {[%emt 0:04:03]} Bg4 {[%emt 0:05:37]} 14. b3 {[%emt 0:08:13]} Qd7 {[%emt 0:01:48]} 15. Ba3 {[%emt 0:06:37]} Rfe8 {[%emt 0:00:24]} 16. Na4 {[%emt 0:11:15]} Bh3 {[%emt 0:00:15]} 17. Bc5 {[%emt 0:00:58]} Bc7 {[%emt 0:11:08]} 18. Bd4 {[%emt 0:01:19]} Bxg2 {[%emt 0:05:44]} 19. Kxg2 {[%emt 0:00:01]} Be5 {[%emt 0:00:09]} 20. Rfd1 {[%emt 0:04:07]} Ng4 {[%emt 0:01:25]} 21. Rac1 {[%emt 0:03:03]} Rac8 {[%emt 0:01:09]} 22. Nc5 {[%emt 0:00:32]} Qd6 {[%emt 0:00:30]} 23. Qf5 {[%emt 0:02:20]} g6 {[%emt 0:03:23]} 24. Bxe5 {[%emt 0:00:22]} Nxe5 {[%emt 0:00:09]} 25. Ne4 {[%emt 0:09:43]} Qd8 {[%emt 0:02:25]} 26. Nf6+ {[%emt 0:03:53]} Kf8 {[%emt 0:00:49]} 27. Qg5 {[%emt 0:01:48]} Re6 {[%emt 0:00:07]} 28. Nh7+ {[%emt 0:00:24]} Kg7 {[%emt 0:00:09]} 29. Qxd8 {[%emt 0:00:04]} Rxd8 {[%emt 0:00:04]} 30. Ng5 {[%emt 0:00:07]} Rf6 {[%emt 0:00:06]} 31. Ne4 {[%emt 0:01:55]} Re6 {[%emt 0:00:49]} 32. Ng5 {[%emt 0:00:15]} Rf6 {[%emt 0:00:06]} 33. Ne4 {[%emt 0:00:00]} Re6 {[%emt 0:00:06]} 34. Nc5 {[%emt 0:00:50]} Rf6 {[%emt 0:00:09]} 35. Rd4 {[%emt 0:00:36]} Ng4 {[%emt 0:00:42]} 36. Nd3 {[%emt 0:00:26]} Re8 {[%emt 0:01:00]} 37. Rc5 {[%emt 0:01:06]} Re4 {[%emt 0:00:19]} 38. Ra5 {[%emt 0:01:00]} Rxd4 {[%emt 0:00:54]} 39. exd4 {[%emt 0:00:03]} Re6 {[%emt 0:00:07]} 40. Nf4 {[%emt 0:01:02]} Re1 {[%emt 0:00:25]} 41. f3 {[%emt 0:31:08]} Nh6 {[%emt 0:30:28]} 42. Rxa7 {[%emt 0:00:00]} Nf5 {[%emt 0:00:00]} 43. Kf2 {[%emt 0:00:00]} Rd1 {[%emt 0:00:00]} 44. Ne6+ {[%emt 0:00:00]} Kg8 {[%emt 0:00:00]} 45. Ra8+ {[%emt 0:00:00]} Kh7 {[%emt 0:00:00]} 46. Ng5+ {[%emt 0:00:00]} Kg7 {[%emt 0:00:00]} 47. Ra7 {[%emt 0:00:00]} Rd2+ {[%emt 0:00:00]} 48. Ke1 {[%emt 0:00:00]} Rg2 {[%emt 0:00:00]} 49. Nxf7 {[%emt 0:00:00]} Nxd4 {[%emt 0:00:00]} 50. Kf1 {[%emt 0:00:00]} Rxg3 {[%emt 0:00:00]} 51. Ng5+ {[%emt 0:00:00]} Kg8 {[%emt 0:00:00]} 52. Kf2 {[%emt 0:00:00]} Nf5 {[%emt 0:00:00]} 53. a4 {[%emt 0:00:00]} 1-0